[Event "WSTCC-65 2024"]
[Site "Krakow"]
[Date "2024.07.06"]
[Round "5.1"]
[White "Nunn, John D M"]
[Black "Sharif, Mehrshad"]
[Result "1-0"]
[ECO "C11"]
[WhiteElo "2552"]
[BlackElo "2324"]
[Annotator "RC"]
[PlyCount "75"]
[EventDate "2024.07.01"]
[EventType "team-tourn"]
[EventCountry "POL"]
[SourceTitle "playchess.com"]
[Source "ChessBase"]
[SourceQuality "1"]
[TimeControl "40/5400+30:1800+30"]

1. e4 {[%emt 0:00:05]} e6 {[%emt 0:00:07]} 2. d4 {[%emt 0:00:05]} d5 {[%emt 0:00:07]} 3. Nc3 {[%emt 0:00:05]} Nf6 {[%emt 0:00:36]} 4. e5 {[%emt 0:00:12]} Nfd7 {[%emt 0:00:21]} 5. f4 {[%emt 0:00:07]} c5 {[%emt 0:00:13]} 6. Nf3 {[%emt 0:00:06]} Nc6 {[%emt 0:00:15]} 7. Be3 {[%emt 0:00:12]} a6 {[%emt 0:00:13]} 8. Qd2 {[%emt 0:00:08]} b5 {[%emt 0:00:31]} 9. h4 {[%emt 0:01:27]} b4 {[%emt 0:03:33]} 10. Na4 {[%emt 0:00:23]} Qa5 {[%emt 0:07:50]} 11. Nxc5 {[%emt 0:13:04]} Nxc5 {[%emt 0:01:14]} 12. dxc5 {[%emt 0:00:07]} Bxc5 {[%emt 0:00:34]} 13. h5 {[%emt 0:09:05]} h6 {[%emt 0:03:02]} 14. Bd3 {[%emt 0:06:36]} Qb6 {[%emt 0:08:43]} 15. Bxc5 {[%emt 0:01:25]} Qxc5 {[%emt 0:01:14]} 16. Qf2 {[%emt 0:05:20]} Qxf2+ {[%emt 0:02:42]} 17. Kxf2 {[%emt 0:00:04]} Ke7 {[%emt 0:03:27]} 18. a3 {[%emt 0:05:49]} Bd7 {[%emt 0:02:10]} 19. Ke3 {[%emt 0:02:27]} Rhb8 {[%emt 0:02:42]} 20. b3 {[%emt 0:02:37]} a5 {[%emt 0:02:28]} 21. a4 {[%emt 0:08:31]} Rc8 {[%emt 0:06:28]} 22. g4 {[%emt 0:02:51]} f6 {[%emt 0:06:49]} 23. Rag1 {[%emt 0:14:20]} fxe5 {[%emt 0:03:39]} 24. fxe5 {[%emt 0:00:14]} Rf8 {[%emt 0:02:47]} 25. g5 {[%emt 0:01:24]} Rxf3+ {[%emt 0:02:48]} 26. Kxf3 {[%emt 0:00:35]} Nxe5+ {[%emt 0:00:09]} 27. Ke2 {[%emt 0:02:03]} Kd6 {[%emt 0:03:16]} 28. gxh6 {[%emt 0:00:49]} gxh6 {[%emt 0:00:09]} 29. Rg7 {[%emt 0:00:35]} Rc8 {[%emt 0:03:14]} 30. Rh7 {[%emt 0:03:51]} Rg8 {[%emt 0:04:01]} 31. Rxh6 {[%emt 0:05:39]} Rg2+ {[%emt 0:00:36]} 32. Ke1 {[%emt 0:08:27]} Nxd3+ {[%emt 0:24:50]} 33. cxd3 {[%emt 0:00:06]} Bxa4 {[%emt 0:00:19]} 34. Rh8 {[%emt 0:04:49]} Bb5 {[%emt 0:05:25]} 35. h6 {[%emt 0:00:23]} Bxd3 {[%emt 0:00:12]} 36. h7 {[%emt 0:00:06]} Bxh7 {[%emt 0:00:38]} 37. R1xh7 {[%emt 0:00:06]} e5 {[%emt 0:00:38]} 38. Ra7 {[%emt 0:00:40]} 1-0

[Event "WSTCC-65 2024"]
[Site "Krakow"]
[Date "2024.07.06"]
[Round "5.1"]
[White "Garcia Palermo, Carlos Horacio"]
[Black "Janocha, Wieslaw"]
[Result "0-1"]
[ECO "D12"]
[WhiteElo "2419"]
[BlackElo "2167"]
[Annotator "TA"]
[PlyCount "130"]
[EventDate "2024.07.01"]
[EventType "team-tourn"]
[EventCountry "POL"]
[SourceTitle "playchess.com"]
[Source "ChessBase"]
[SourceQuality "1"]
[TimeControl "40/5400+30:1800+30"]

{[%evp 15,130,18,16,16,8,0,0,-15,33,35,55,37,41,33,46,33,64,32,43,32,37,21,19,23,21,17,19,22,23,33,33,24,33,33,33,20,30,-8,-5,-5,-5,-4,-1,-1,-1,-16,-11,-21,-7,-6,-6,-27,-23,-89,-102,-87,-83,-85,0,0,0,-2,0,-20,-18,-330,-331,-635,-631,-531,-637,-572,-254,-262,-188,-374,-412,-473,-365,-351,-386,-369,-376,-384,-389,-388,-381,-379,-369,-444,-416,-635,-641,-667,-679,-669,-681,-660,-677,-1523,-591,-679,-652,-664,-680,-682,-679,-675,-668,-29979,-29980,-29981,-29982,-29988,-29989,-29989,-29990]} 1. d4 {[%emt 0:00:10]} Nf6 {[%emt 0:00:26]} 2. Nf3 {[%emt 0:00:49]} d5 {[%emt 0:00:46]} 3. c4 {[%emt 0:00:22]} c6 {[%emt 0:00:19]} 4. e3 {[%emt 0:00:36]} Bf5 {[%emt 0:00:51]} 5. Nc3 {[%emt 0:00:41]} e6 {[%emt 0:01:27]} 6. Bd3 {[%emt 0:00:25]} Bg6 {[%emt 0:00:43]} 7. O-O {[%emt 0:04:25]} Nbd7 {[%emt 0:00:40]} 8. Qe2 {[%emt 0:00:48]} Bb4 {[%emt 0:01:34]} 9. Bd2 {[%emt 0:01:46][%cal Oc3d5]} a5 {[%emt 0:03:29]} 10. Bxg6 {[%emt 0:06:42]} hxg6 {[%emt 0:00:27]} 11. cxd5 {[%emt 0:00:14] The position is equal.} cxd5 {[%emt 0:15:10]} (11... exd5 $11 12. a3 Be7) 12. Rfc1 {[%emt 0:15:54]} Bd6 {[%emt 0:16:21][%cal Og6g5]} 13. h3 {[%emt 0:16:05]} O-O {[%emt 0:06:32]} 14. Nb5 {[%emt 0:01:16]} Ne4 {[%emt 0:02:26]} 15. Rc2 {[%emt 0:03:21]} Nb6 {[%emt 0:13:34]} 16. a4 {[%emt 0:04:14]} Qd7 {[%emt 0:09:02]} 17. b3 {[%emt 0:01:29]} Rfc8 {[%emt 0:06:24]} 18. Rxc8+ {[%emt 0:02:52]} Nxc8 {[%emt 0:00:37]} 19. Rc1 {[%emt 0:02:04]} Ne7 {[%emt 0:04:14]} 20. Nxd6 {[%emt 0:05:04]} Qxd6 {[%emt 0:04:25]} 21. Qb5 {[%emt 0:00:38][%csl LRa5,LRb7]} Nxd2 {[%emt 0:01:52]} 22. Nxd2 {[%emt 0:00:12]} b6 {[%emt 0:00:12]} 23. h4 {[%emt 0:20:58]} Kf8 {[%emt 0:03:01]} 24. Nf3 {[%emt 0:00:38]} f6 {[%emt 0:00:49]} 25. Qd3 {[%emt 0:00:43]} Kf7 {[%emt 0:00:20]} 26. h5 {[%emt 0:01:50]} gxh5 {[%emt 0:01:24]} 27. Qh7 {[%emt 0:00:10]} Ng6 {[%emt 0:01:15]} 28. Qxh5 {[%emt 0:00:05]} Rh8 {[%emt 0:00:07]} 29. Qg4 {[%emt 0:00:04]} Ne7 {[%emt 0:00:46]} 30. e4 {[%emt 0:04:44]} (30. Qf4 {simplifies} Qxf4 31. exf4 Rb8 32. Rc7) 30... dxe4 {[%emt 0:03:22]} 31. Qxe4 {[%emt 0:00:08]} Nd5 {[%emt 0:00:02]} 32. g3 {[%emt 0:00:54]} Qd7 {[%emt 0:00:50]} 33. Qc2 {[%emt 0:02:06]} Ne7 {[%emt 0:00:07]} 34. Qc7 {[%emt 0:01:05] [#]} (34. Qd3 $11 {keeps the balance.}) 34... Qd5 $1 $17 {[%emt 0:00:08][%csl LRb3,LRf3]} 35. Qf4 {[%emt 0:00:14]} g5 {[%emt 0:01:14]} (35... Qxb3 $6 36. Ne5+ Kg8 37. Nd7 $11) 36. Qe3 {[%emt 0:00:44]} Nf5 {[%emt 0:01:24]} ({Black should play} 36... Qf5 $17 {...Nd5 would now be deadly.} 37. Ne1 (37. Rc7 $2 Qh3 $19) 37... Qh7) 37. Rc7+ $11 {[%emt 0:00:30]} Kg6 {[%emt 0:00:02]} 38. Qd3 {[%emt 0:00:32]} Rh3 {[%emt 0:00:57]} 39. Rc3 {[%emt 0:02:11]} g4 $36 {[%emt 0:00:33][%mdl 2048] Black has the initiative.} 40. Nh4+ {[%emt 0:01:24][%mdl 8192] [#] Now White is beyond hope.} (40. Nh2 $1 $11 {and White is okay.}) 40... Kf7 $1 $19 {[%emt 0:01:29][%csl Gh3][%cal Rd5h1]} 41. Kf1 $2 {[%emt 0:19:08]} (41. Rc7+ Kf8 42. Rc8+ Ke7 43. Nxf5+ Kd7 44. Kf1) 41... Rh1+ {[%emt 0:19:48]} ({Not} 41... Nxh4 42. Qh7+ Ke8 43. Qg8+ (43. Rc8+ Qd8 44. Qg8+ Ke7 45. Qxd8+ Kf7 46. Qg8+ Ke7 47. Qf8+ Kd7 48. Qd8#) 43... Ke7 44. Rc7+ (44. Qxg4 $2 {perishes.} Rh1+ 45. Ke2 Nf5 $19) (44. Qxg4 $2 Rh1+ 45. Ke2 Nf5 $19)) (41... Qxd4 42. Rc7+ Ke8 43. Qxd4 (43. Qb5+ $2 Kd8 $19) 43... Nxd4 44. Kg2 $11) 42. Ke2 {[%emt 0:00:06]} Nxd4+ {[%emt 0:00:07]} 43. Kd2 {[%emt 0:00:28] Threatening mate with Qh7+.} Qg5+ {[%emt 0:00:18]} (43... f5 $142 44. Ng2 e5) 44. Qe3 {[%emt 0:00:15]} e5 {[%emt 0:00:14] And now ...Rf1 would win.} 45. Rc7+ $2 {[%emt 0:05:37]} (45. f4 gxf3 46. Qxg5 fxg5 47. Nxf3) 45... Ke6 {[%emt 0:00:44]} 46. Rb7 {[%emt 0:00:50]} Nxb3+ {[%emt 0:00:29]} 47. Kc3 {[%emt 0:00:30]} Qxe3+ {[%emt 0:02:23]} 48. fxe3 {[%emt 0:00:06][%mdl 4096] Endgame. KRN-KRN} Nc5 $1 {[%emt 0:00:06][%csl LRa4,LRb7]} 49. Rxb6+ {[%emt 0:00:06]} Kd5 {[%emt 0:00:30]} 50. Rb5 {[%emt 0:00:21]} Rc1+ {[%emt 0:02:54]} 51. Kb2 {[%emt 0:00:34]} Rc4 {[%emt 0:00:19]} 52. Nf5 {[%emt 0:06:35]} Rxa4 {[%emt 0:01:25]} 53. Kc3 {[%emt 0:00:17] Dodges Rb4} (53. Nh6 $142) 53... Rc4+ {[%emt 0:01:36]} 54. Kd2 {[%emt 0:01:03]} a4 {[%emt 0:00:11]} 55. Ra5 {[%emt 0:02:10]} Kc6 {[%emt 0:01:14] ( -> ...Nb3+)} 56. Ra8 {[%emt 0:00:19]} Kb7 {[%emt 0:03:20]} 57. Rf8 {[%emt 0:00:25]} Nb3+ {[%emt 0:00:13]} (57... Ne4+ $142 58. Kd3 a3 (58... Rb4 $2 59. Rf7+ Kc6 60. Rf8 $19) 59. Rf7+ Kb6 (59... Rc7 $2 60. Rxc7+ Kxc7 61. Kc2 $19)) 58. Kd3 {[%emt 0:00:33]} Rc6 {[%emt 0:00:02] Hoping for ...a3.} 59. Rf7+ {[%emt 0:00:34]} Ka6 {[%emt 0:00:56] Strongly threatening ...a3.} 60. Ne7 {[%emt 0:00:22]} Rc5 {[%emt 0:02:16] Threatens to win with ...a3.} 61. Rxf6+ {[%emt 0:00:25]} Kb5 {[%emt 0:00:02]} 62. e4 {[%emt 0:00:56]} a3 {[%emt 0:01:32] Black mates.} 63. Nd5 {[%emt 0:00:15]} a2 {[%emt 0:00:19]} 64. Rb6+ {[%emt 0:00:31]} Ka4 {[%emt 0:00:44]} 65. Ra6+ {[%emt 0:00:46]} Na5 {[%emt 0:00:06] Weighted Error Value: White=0.41/Black=0.33.  Loses game:     	White=1     	---        Mistake:       	White=4     	Black=3      Inaccurate:     	White=2     	Black=1      OK:         	White=17    	Black=17     Best:        	White=2     	Black=5      Strong:       	---       	Black=2} 0-1

[Event "WSTCC-65 2024"]
[Site "Krakow"]
[Date "2024.07.06"]
[Round "5.1"]
[White "Carvalho, Herbert Abreu"]
[Black "Sanetra, Piotr"]
[Result "1-0"]
[ECO "D30"]
[WhiteElo "2123"]
[BlackElo "2024"]
[Annotator "RC"]
[PlyCount "35"]
[EventDate "2024.07.01"]
[EventType "team-tourn"]
[EventCountry "POL"]
[SourceTitle "playchess.com"]
[Source "ChessBase"]
[SourceQuality "1"]
[TimeControl "40/5400+30:1800+30"]

1. d4 {[%emt 0:00:03]} d5 {[%emt 0:00:11]} 2. c4 {[%emt 0:00:09]} e6 {[%emt 0:00:05]} 3. Nf3 {[%emt 0:00:18]} Nf6 {[%emt 0:00:19]} 4. g3 {[%emt 0:00:44]} dxc4 {[%emt 0:01:06]} 5. Qa4+ {[%emt 0:01:01]} Nbd7 {[%emt 0:00:43]} 6. Bg2 {[%emt 0:00:17]} a6 {[%emt 0:01:11]} 7. Qxc4 {[%emt 0:04:40]} b5 {[%emt 0:03:25]} 8. Qc6 {[%emt 0:11:24]} Rb8 {[%emt 0:00:25]} 9. O-O {[%emt 0:00:09]} Bb7 {[%emt 0:00:28]} 10. Qc2 {[%emt 0:00:07]} Rc8 {[%emt 0:10:10]} 11. a4 {[%emt 0:16:43]} c5 {[%emt 0:06:45]} 12. axb5 {[%emt 0:00:48]} axb5 {[%emt 0:01:48]} 13. Bd2 {[%emt 0:02:58]} cxd4 {[%emt 0:12:35]} 14. Qd3 {[%emt 0:07:40]} Qb6 {[%emt 0:03:49]} 15. Ba5 {[%emt 0:02:50]} Qc5 {[%emt 0:11:59]} 16. Nbd2 {[%emt 0:05:46]} Ne5 {[%emt 0:11:16]} 17. Nxe5 {[%emt 0:10:26]} Bxg2 {[%emt 0:07:16]} 18. Rfc1 {[%emt 0:02:09]} 1-0

[Event "WSTCC-65 2024"]
[Site "Krakow"]
[Date "2024.07.06"]
[Round "5.2"]
[White "Roos, Daniel"]
[Black "Kosten, Anthony C."]
[Result "1/2-1/2"]
[ECO "A05"]
[WhiteElo "2307"]
[BlackElo "2360"]
[Annotator "RC"]
[PlyCount "48"]
[EventDate "2024.07.01"]
[EventType "team-tourn"]
[EventCountry "POL"]
[SourceTitle "playchess.com"]
[Source "ChessBase"]
[SourceQuality "1"]
[TimeControl "40/5400+30:1800+30"]

1. Nf3 {[%emt 0:00:16]} Nf6 {[%emt 0:00:22]} 2. g3 {[%emt 0:00:13]} d5 {[%emt 0:00:13]} 3. Bg2 {[%emt 0:00:36]} e6 {[%emt 0:00:08]} 4. O-O {[%emt 0:01:15]} Bd6 {[%emt 0:00:08]} 5. d3 {[%emt 0:04:20]} O-O {[%emt 0:00:46]} 6. Nc3 {[%emt 0:03:17]} Nc6 {[%emt 0:03:36]} 7. Nd2 {[%emt 0:06:01]} d4 {[%emt 0:06:20]} 8. Nce4 {[%emt 0:02:45]} Nxe4 {[%emt 0:01:17]} 9. Nxe4 {[%emt 0:00:41]} Be7 {[%emt 0:00:21]} 10. c3 {[%emt 0:05:21]} e5 {[%emt 0:01:04]} 11. cxd4 {[%emt 0:13:41]} exd4 {[%emt 0:00:47]} 12. Nd2 {[%emt 0:01:18]} a5 {[%emt 0:07:34]} 13. Nc4 {[%emt 0:02:08]} Nb4 {[%emt 0:10:28]} 14. Bd2 {[%emt 0:01:29]} a4 {[%emt 0:06:59]} 15. a3 {[%emt 0:04:58]} Nd5 {[%emt 0:03:30]} 16. Rc1 {[%emt 0:01:51]} Be6 {[%emt 0:04:38]} 17. Qc2 {[%emt 0:02:40]} c6 {[%emt 0:02:54]} 18. e4 {[%emt 0:04:59]} dxe3 {[%emt 0:03:43]} 19. fxe3 {[%emt 0:00:11]} Bf6 {[%emt 0:05:07]} 20. d4 {[%emt 0:07:23]} Re8 {[%emt 0:09:24]} 21. Qd3 {[%emt 0:03:48]} Nc7 {[%emt 0:01:37]} 22. Bb4 {[%emt 0:02:38]} Nd5 {[%emt 0:05:50]} 23. Bd2 {[%emt 0:00:13]} Nc7 {[%emt 0:00:10]} 24. Bb4 {[%emt 0:00:06]} Nd5 {[%emt 0:00:06]} 1/2-1/2

[Event "WSTCC-65 2024"]
[Site "Krakow"]
[Date "2024.07.06"]
[Round "5.2"]
[White "Swierczewski, Marek"]
[Black "Messa, Roberto"]
[Result "1/2-1/2"]
[ECO "C55"]
[WhiteElo "2059"]
[BlackElo "2262"]
[Annotator "RC"]
[PlyCount "103"]
[EventDate "2024.07.01"]
[EventType "team-tourn"]
[EventCountry "POL"]
[SourceTitle "playchess.com"]
[Source "ChessBase"]
[SourceQuality "1"]
[TimeControl "40/5400+30:1800+30"]

1. e4 {[%emt 0:00:02]} e5 {[%emt 0:00:07]} 2. Nf3 {[%emt 0:00:06]} Nc6 {[%emt 0:00:03]} 3. Bc4 {[%emt 0:00:24]} Nf6 {[%emt 0:00:07]} 4. d3 {[%emt 0:00:07]} Be7 {[%emt 0:01:08]} 5. O-O {[%emt 0:01:47]} O-O {[%emt 0:00:11]} 6. Nbd2 {[%emt 0:03:03]} d6 {[%emt 0:00:59]} 7. c3 {[%emt 0:00:10]} h6 {[%emt 0:07:47]} 8. Bb3 {[%emt 0:02:00]} Be6 {[%emt 0:07:41]} 9. Bc2 {[%emt 0:00:24]} Bg4 {[%emt 0:11:44]} 10. Re1 {[%emt 0:12:16]} Nd7 {[%emt 0:07:09]} 11. h3 {[%emt 0:02:14]} Bh5 {[%emt 0:00:04]} 12. Nf1 {[%emt 0:01:41]} Bg5 {[%emt 0:06:18]} 13. g4 {[%emt 0:05:34]} Bxc1 {[%emt 0:02:57]} 14. Rxc1 {[%emt 0:00:16]} Bg6 {[%emt 0:00:05]} 15. Ng3 {[%emt 0:00:13]} Qf6 {[%emt 0:02:59]} 16. b4 {[%emt 0:05:47]} a5 {[%emt 0:03:25]} 17. b5 {[%emt 0:01:46]} Nd8 {[%emt 0:01:50]} 18. d4 {[%emt 0:05:08]} Ne6 {[%emt 0:01:03]} 19. Nf5 {[%emt 0:00:59]} Rfe8 {[%emt 0:05:26]} 20. Kh2 {[%emt 0:08:52]} Bxf5 {[%emt 0:11:19]} 21. exf5 {[%emt 0:00:31]} Ng5 {[%emt 0:01:44]} 22. Nxg5 {[%emt 0:09:33]} hxg5 {[%emt 0:00:50]} 23. Be4 {[%emt 0:00:15]} Rab8 {[%emt 0:02:27]} 24. Kg2 {[%emt 0:01:47]} Re7 {[%emt 0:03:01]} 25. Qf3 {[%emt 0:05:55]} exd4 {[%emt 0:02:22]} 26. cxd4 {[%emt 0:04:03]} Qxd4 {[%emt 0:00:23]} 27. Rxc7 {[%emt 0:00:33]} Ne5 {[%emt 0:02:55]} 28. Qc3 {[%emt 0:00:11]} Qxc3 {[%emt 0:02:11]} 29. Rxc3 {[%emt 0:00:11]} Kf8 {[%emt 0:01:24]} 30. f3 {[%emt 0:03:01]} Rd7 {[%emt 0:02:20]} 31. Bd5 {[%emt 0:01:59]} Re7 {[%emt 0:05:25]} 32. Rec1 {[%emt 0:07:34]} Rbe8 {[%emt 0:01:55]} 33. Rc8 {[%emt 0:06:32]} Nd3 {[%emt 0:00:40]} 34. Rxe8+ Kxe8 {[%emt 0:02:42]} 35. Rd1 {[%emt 0:03:29]} Nf4+ {[%emt 0:00:27]} 36. Kf1 {[%emt 0:00:07]} Kd8 {[%emt 0:02:14]} 37. b6 {[%emt 0:02:13]} Nxd5 {[%emt 0:01:39]} 38. Rxd5 {[%emt 0:00:01]} Kd7 {[%emt 0:00:06]} 39. Rxa5 {[%emt 0:03:55]} Kc6 {[%emt 0:00:02]} 40. Ra4 {[%emt 0:00:49]} Kxb6 {[%emt 0:00:21]} 41. Kf2 {[%emt 0:30:24]} f6 {[%emt 0:31:31]} 42. Rc4 {[%emt 0:02:43]} d5 {[%emt 0:00:00]} 43. Rc8 {[%emt 0:00:00]} Rc7 {[%emt 0:00:00]} 44. Rd8 {[%emt 0:00:00]} Kc5 {[%emt 0:00:00]} 45. Ke3 {[%emt 0:00:00]} b5 {[%emt 0:00:00]} 46. Kd3 {[%emt 0:00:00]} Ra7 {[%emt 0:00:00]} 47. Rc8+ {[%emt 0:00:00]} Kd6 {[%emt 0:00:00]} 48. Rb8 {[%emt 0:00:00]} Ra3+ {[%emt 0:00:00]} 49. Kd4 {[%emt 0:00:00]} Ra4+ {[%emt 0:00:00]} 50. Kd3 {[%emt 0:00:00]} Ra3+ {[%emt 0:00:00]} 51. Kd4 {[%emt 0:00:00]} Rxf3 52. Rb6+ 1/2-1/2

[Event "WSTCC-65 2024"]
[Site "Krakow"]
[Date "2024.07.06"]
[Round "5.2"]
[White "Kusina, Jan"]
[Black "Barreto, Ignacio C. de Barros"]
[Result "1-0"]
[ECO "A46"]
[WhiteElo "1969"]
[BlackElo "2059"]
[Annotator "NA RC"]
[PlyCount "75"]
[EventDate "2024.07.01"]
[EventType "team-tourn"]
[EventCountry "POL"]
[SourceTitle "playchess.com"]
[Source "ChessBase"]
[SourceQuality "1"]
[TimeControl "40/5400+30:1800+30"]

1. d4 {[%emt 0:00:04]} Nf6 {[%emt 0:01:22]} 2. Nf3 {[%emt 0:00:12]} e6 {[%emt 0:00:48]} 3. Bg5 {[%emt 0:00:19]} h6 {[%emt 0:00:23]} 4. Bh4 {[%emt 0:00:13]} c5 {[%emt 0:00:24]} 5. e3 {[%emt 0:00:57]} Qb6 {[%emt 0:06:25]} 6. b3 {[%emt 0:00:54]} Nc6 {[%emt 0:04:07]} 7. c3 {[%emt 0:00:25]} cxd4 {[%emt 0:09:44]} 8. exd4 {[%emt 0:00:34]} g5 {[%emt 0:07:41]} 9. Bg3 {[%emt 0:00:01]} Ne4 {[%emt 0:00:22]} 10. Bd3 {[%emt 0:00:32]} Nxg3 {[%emt 0:05:25]} 11. hxg3 {[%emt 0:00:15]} Bg7 {[%emt 0:00:22]} 12. Nbd2 {[%emt 0:03:56]} d5 13. O-O {[%emt 0:04:34]} Bd7 {[%emt 0:04:46]} 14. Re1 {[%emt 0:00:59]} O-O {[%emt 0:09:30]} 15. Nf1 {[%emt 0:00:58]} Rfc8 {[%emt 0:03:15]} 16. Rc1 {[%emt 0:00:32]} Qa5 {[%emt 0:04:56]} 17. Bb1 {[%emt 0:01:04]} Kf8 {[%emt 0:08:04]} 18. Ne3 {[%emt 0:01:23]} b5 {[%emt 0:08:25]} 19. Qd3 {[%emt 0:02:55]} Rc7 {[%emt 0:01:56]} 20. Ng4 {[%emt 0:04:06]} f5 {[%emt 0:02:11]} 21. Nge5 {[%emt 0:00:49]} Nxe5 {[%emt 0:01:41]} 22. Nxe5 {[%emt 0:00:02]} Bxe5 {[%emt 0:06:40]} 23. Rxe5 {[%emt 0:00:36]} Rac8 {[%emt 0:00:02]} 24. Re3 {[%emt 0:01:13]} Qa3 {[%emt 0:01:32]} 25. Rc2 {[%emt 0:01:43]} b4 {[%emt 0:00:36]} 26. Qd2 {[%emt 0:02:02]} Qa5 {[%emt 0:02:48]} 27. cxb4 {[%emt 0:02:35]} Rxc2 {[%emt 0:00:20]} 28. Bxc2 {[%emt 0:00:22]} Qxa2 {[%emt 0:00:20]} 29. Re2 {[%emt 0:00:12]} Bb5 {[%emt 0:02:40]} 30. Bd3 {[%emt 0:00:19]} Qa1+ {[%emt 0:00:29]} 31. Re1 {[%emt 0:01:03]} Qxd4 {[%emt 0:01:13]} 32. Qe2 {[%emt 0:02:44]} Bxd3 {[%emt 0:04:19]} 33. Qxe6 {[%emt 0:00:15]} Qc3 {[%emt 0:01:11]} 34. Qxh6+ {[%emt 0:04:24]} Kf7 {[%emt 0:02:58]} 35. Qh7+ {[%emt 0:01:55]} Kf8 {[%emt 0:00:00]} 36. Qe7+ Kg8 37. Qxg5+ Qg7 38. Qe7 1-0

[Event "WSTCC-65 2024"]
[Site "Krakow"]
[Date "2024.07.06"]
[Round "5.3"]
[White "Mestel, A Jonathan"]
[Black "Legky, Nikolay A"]
[Result "1/2-1/2"]
[ECO "A13"]
[WhiteElo "2470"]
[BlackElo "2339"]
[Annotator "RC"]
[PlyCount "29"]
[EventDate "2024.07.01"]
[EventType "team-tourn"]
[EventCountry "POL"]
[SourceTitle "playchess.com"]
[Source "ChessBase"]
[SourceQuality "1"]
[TimeControl "40/5400+30:1800+30"]

1. c4 {[%emt 0:00:23]} e6 {[%emt 0:00:03]} 2. Nf3 {[%emt 0:00:14]} d5 {[%emt 0:00:07]} 3. g3 {[%emt 0:00:31]} d4 {[%emt 0:00:07]} 4. e3 {[%emt 0:03:14]} Nc6 {[%emt 0:00:14]} 5. Bg2 {[%emt 0:14:38]} Nh6 {[%emt 0:00:06]} 6. O-O {[%emt 0:03:13]} Nf5 {[%emt 0:04:35]} 7. d3 {[%emt 0:03:39]} dxe3 {[%emt 0:16:46]} 8. fxe3 {[%emt 0:00:52]} h5 {[%emt 0:12:14]} 9. Nc3 {[%emt 0:28:51]} h4 {[%emt 0:06:35]} 10. g4 {[%emt 0:03:23]} h3 {[%emt 0:00:05]} 11. Bh1 {[%emt 0:00:28]} Nh4 {[%emt 0:07:26]} 12. d4 {[%emt 0:14:55]} Qd7 {[%emt 0:05:46]} 13. Nxh4 {[%emt 0:04:10]} Rxh4 {[%emt 0:00:05]} 14. Bf3 {[%emt 0:00:18]} b6 {[%emt 0:05:25]} 15. Bd2 {[%emt 0:04:38]} 1/2-1/2

[Event "WSTCC-65 2024"]
[Site "Krakow"]
[Date "2024.07.06"]
[Round "5.3"]
[White "Cocozza, Mario"]
[Black "Czajkowski, Ryszard"]
[Result "1/2-1/2"]
[ECO "C07"]
[WhiteElo "2206"]
[BlackElo "1975"]
[Annotator "RC"]
[PlyCount "136"]
[EventDate "2024.07.01"]
[EventType "team-tourn"]
[EventCountry "POL"]
[SourceTitle "playchess.com"]
[Source "ChessBase"]
[SourceQuality "1"]
[TimeControl "40/5400+30:1800+30"]

1. e4 {[%emt 0:00:06]} e6 {[%emt 0:00:03]} 2. d4 {[%emt 0:00:09]} d5 {[%emt 0:00:05]} 3. Nd2 {[%emt 0:00:07]} c5 {[%emt 0:00:12]} 4. exd5 {[%emt 0:00:13]} Qxd5 {[%emt 0:00:19]} 5. Ngf3 {[%emt 0:00:37]} cxd4 {[%emt 0:00:15]} 6. Bc4 {[%emt 0:00:10]} Qd6 {[%emt 0:00:13]} 7. O-O {[%emt 0:00:29]} Nc6 {[%emt 0:00:08]} 8. Nb3 {[%emt 0:00:58]} Nf6 {[%emt 0:00:18]} 9. Nbxd4 {[%emt 0:01:11]} Nxd4 {[%emt 0:00:14]} 10. Nxd4 a6 11. c3 {[%emt 0:06:29]} Qc7 {[%emt 0:03:31]} 12. Be2 {[%emt 0:17:30]} Be7 {[%emt 0:12:25]} 13. Re1 {[%emt 0:03:47]} O-O {[%emt 0:00:46]} 14. Bf3 {[%emt 0:00:22]} e5 {[%emt 0:06:08]} 15. Nc2 {[%emt 0:14:18]} h6 {[%emt 0:10:12]} 16. g3 {[%emt 0:05:46]} Bh3 {[%emt 0:05:27]} 17. Qe2 {[%emt 0:04:21]} Bd6 {[%emt 0:03:33]} 18. Ne3 {[%emt 0:05:53]} e4 {[%emt 0:02:46]} 19. Bg2 {[%emt 0:00:36]} Bxg2 {[%emt 0:02:10]} 20. Kxg2 {[%emt 0:00:43]} Rad8 {[%emt 0:11:55]} 21. Nc4 {[%emt 0:08:41]} Qc6 {[%emt 0:09:16]} 22. Kg1 {[%emt 0:00:43]} Bc7 {[%emt 0:01:02]} 23. Be3 {[%emt 0:01:05]} b5 {[%emt 0:02:07]} 24. Nd2 {[%emt 0:00:35]} Nd7 {[%emt 0:05:01]} 25. Bd4 {[%emt 0:01:39]} f5 {[%emt 0:00:18]} 26. f3 {[%emt 0:04:06]} Bb6 {[%emt 0:08:56]} 27. fxe4 {[%emt 0:01:45]} f4 {[%emt 0:02:02]} 28. Kg2 {[%emt 0:09:37]} fxg3 {[%emt 0:02:00]} 29. hxg3 {[%emt 0:00:04]} Ne5 {[%emt 0:01:20]} 30. Bxb6 {[%emt 0:06:12]} Qxb6 {[%emt 0:00:42]} 31. Rf1 {[%emt 0:00:05]} h5 {[%emt 0:05:44]} 32. Rxf8+ {[%emt 0:01:53]} Rxf8 {[%emt 0:00:12]} 33. Rf1 {[%emt 0:00:09]} Rxf1 {[%emt 0:01:03]} 34. Nxf1 {[%emt 0:00:27]} Ng4 {[%emt 0:00:23]} 35. Nh2 {[%emt 0:01:07]} Ne3+ {[%emt 0:00:58]} 36. Kh1 {[%emt 0:01:37]} g6 {[%emt 0:00:27]} 37. Qf2 {[%emt 0:00:44]} Nc4 {[%emt 0:02:43]} 38. Qxb6 {[%emt 0:01:31]} Nxb6 {[%emt 0:00:02]} 39. b3 {[%emt 0:00:19]} Nd7 {[%emt 0:02:06]} 40. Nf3 {[%emt 0:02:45]} Nc5 {[%emt 0:00:57]} 41. Nd2 {[%emt 0:30:22]} Kf7 {[%emt 0:32:24]} 42. Kg2 {[%emt 0:00:57]} g5 {[%emt 0:00:00]} 43. Kf3 {[%emt 0:00:00]} Kf6 {[%emt 0:00:00]} 44. Ke3 {[%emt 0:00:00]} h4 {[%emt 0:00:00]} 45. gxh4 {[%emt 0:00:00]} gxh4 {[%emt 0:00:00]} 46. Nf3 {[%emt 0:00:00]} h3 {[%emt 0:00:00]} 47. Kd4 {[%emt 0:00:00]} Ne6+ {[%emt 0:00:00]} 48. Kd5 {[%emt 0:00:00]} Nf4+ {[%emt 0:00:00]} 49. Kd6 {[%emt 0:00:00]} Ng6 {[%emt 0:00:00]} 50. c4 {[%emt 0:00:00]} bxc4 {[%emt 0:00:56]} 51. bxc4 {[%emt 0:00:00]} Ne5 {[%emt 0:00:13]} 52. Nxe5 {[%emt 0:03:09]} Kg5 {[%emt 0:00:02]} 53. c5 {[%emt 0:01:03]} Kf4 {[%emt 0:00:01]} 54. Ng4 {[%emt 0:01:00]} Kxg4 {[%emt 0:01:06]} 55. c6 {[%emt 0:00:03]} h2 {[%emt 0:02:18]} 56. c7 {[%emt 0:00:03]} h1=Q {[%emt 0:00:38]} 57. c8=Q+ {[%emt 0:00:10]} Kf4 {[%emt 0:00:32]} 58. Qf5+ {[%emt 0:00:36]} Ke3 {[%emt 0:00:19]} 59. Qg5+ {[%emt 0:01:17]} Kd4 {[%emt 0:00:59]} 60. Qc5+ {[%emt 0:00:10]} Kd3 {[%emt 0:00:17]} 61. e5 {[%emt 0:00:27]} Qh2 {[%emt 0:01:09]} 62. a3 {[%emt 0:01:16]} Ke4 {[%emt 0:00:40]} 63. Qa5 {[%emt 0:00:50]} Kf5 {[%emt 0:00:45]} 64. Qc3 {[%emt 0:00:20]} Qh6+ {[%emt 0:00:21]} 65. Kc5 {[%emt 0:00:19]} Qe6 {[%emt 0:01:06]} 66. a4 {[%emt 0:01:45]} Qxe5+ {[%emt 0:00:24]} 67. Qxe5+ {[%emt 0:00:04]} Kxe5 {[%emt 0:00:01]} 68. a5 {[%emt 0:00:26]} Ke6 {[%emt 0:00:03]} 1/2-1/2